bitfinex-derivatives/quotes_BTCF0:USTF0_20210111
["timestamp","ask_amount","ask_price","bid_price","bid_amount"]
[1610369940174,0.78145995,34137.0,34062.0,0.00033124]
[1610369940375,1.7818557,34137.0,34062.0,0.00033124]
[1610369940776,0.78186757,34139.0,34062.0,0.00033124]
[1610369940976,0.78186757,34139.0,34056.0,0.10754]
[1610369941177,0.7820067,34136.0,34057.0,0.00033118]
[1610369941377,0.7820067,34136.0,34070.0,4.5599]
[1610369941576,0.78230928,34132.0,34070.0,4.5599]
[1610369941778,0.78230928,34132.0,34070.0,4.65085]
[1610369941977,0.09053,34132.0,34071.0,0.00033117]
[1610369942577,0.13632608,34099.0,34071.0,0.00033117]
[1610369942777,0.13632608,34099.0,34070.0,0.09095]
[1610369943177,0.13632608,34099.0,34072.0,0.00033116]
[1610369943377,0.13632608,34099.0,34070.0,0.09095]
[1610369943378,0.13632608,34099.0,34071.0,0.00033121]
[1610369943580,0.20887608,34099.0,34070.0,0.09095]
[1610369944577,0.20887608,34099.0,34086.0,0.13632608]
[1610369944777,0.20887608,34099.0,34080.0,0.07519]
[1610369944978,0.20887608,34099.0,34080.0,0.07340277]
[1610369945979,0.20887608,34099.0,34056.0,0.10754]
[1610369946181,0.20887608,34099.0,34054.0,3.6603]
[1610369946581,0.07255,34099.0,34057.0,0.13632608]
[1610369946779,0.07255,34099.0,34054.0,3.6603]
[1610369948181,0.84462262,34099.0,34054.0,3.6603]
[1610369948581,0.07255,34099.0,34061.0,0.13632608]
[1610369948781,0.77249392,34102.0,34061.0,0.13632608]
[1610369948981,0.77313031,34104.0,34061.0,0.13632608]
[1610369949381,0.77225005,34102.0,34061.0,0.13632608]
[1610369949580,0.84747005,34102.0,34061.0,0.13632608]
[1610369949783,0.07522,34102.0,34061.0,0.13632608]
[1610369950582,0.07522,34102.0,34077.0,0.13632608]
[1610369951383,4.1777,34110.0,34077.0,0.13632608]
[1610369952584,4.1777,34110.0,34109.0,0.13632608]
[1610369953386,0.09053,34132.0,34109.0,0.13632608]
[1610369953586,0.78292777,34142.0,34109.0,0.13632608]
[1610369953987,0.7843774,34146.0,34109.0,0.13632608]
[1610369954389,0.78485603,34148.0,34109.0,0.13632608]
[1610369954587,0.78485603,34148.0,34141.0,0.13632608]
[1610369954786,0.78485603,34148.0,34124.0,0.07814]
[1610369954987,0.88574603,34148.0,34124.0,0.07814]
[1610369955187,0.10089,34148.0,34124.0,0.07635477]
[1610369956089,0.89155952,34148.0,34124.0,0.07635477]
[1610369956487,0.10089,34148.0,34124.0,0.07635477]
[1610369956686,0.79135084,34149.0,34124.0,0.07635477]
[1610369956891,0.79401821,34158.0,34124.0,0.07635477]
[1610369957290,0.7957366,34164.0,34124.0,0.07635477]
[1610369957589,0.79693252,34168.0,34124.0,0.07635477]
[1610369957991,0.796633,34167.0,34124.0,0.07635477]
[1610369958389,0.79682663,34169.0,34124.0,0.07635477]
[1610369958589,0.79682663,34169.0,34164.0,0.13632608]
[1610369958790,0.79814067,34174.0,34164.0,0.13632608]
[1610369959190,0.93399281,34175.0,34163.0,0.09992]
[1610369959392,0.1138,34182.0,34163.0,0.06999]
[1610369959393,0.79722809,34177.0,34163.0,0.06999]
[1610369959591,0.7975376,34180.0,34163.0,0.06999]
[1610369959990,0.79778881,34185.0,34163.0,0.06999]
[1610369960390,0.79842839,34189.0,34163.0,0.06999]
[1610369960589,0.79842839,34189.0,34164.0,0.13632608]
[1610369960790,0.79783729,34191.0,34164.0,0.13632608]
[1610369961291,0.79783729,34191.0,34163.0,0.06999]
[1610369961690,0.79619182,34187.0,34163.0,0.06999]
[1610369962091,0.79553645,34185.0,34163.0,0.06999]
[1610369962492,0.79455132,34184.0,34163.0,0.06999]
[1610369962692,0.13632608,34172.0,34163.0,0.06999]
[1610369962893,0.79523942,34187.0,34163.0,0.06999]
[1610369963294,0.7946219,34188.0,34163.0,0.06999]
[1610369963593,0.70971436,34185.0,34163.0,0.06999]
[1610369963792,0.70971436,34185.0,34124.0,0.07635477]
[1610369963992,0.70909236,34182.0,34111.0,4.7574]
[1610369964193,0.81529236,34182.0,34111.0,4.7574]
[1610369964395,0.70755533,34177.0,34112.0,1.5]
[1610369964594,0.13632608,34170.0,34159.0,0.13632608]
[1610369965395,0.13632608,34170.0,34159.0,0.13454279]
[1610369965794,0.13632608,34170.0,34111.0,4.7574]
[1610369966696,0.13632608,34162.0,34148.0,0.13632608]
[1610369967096,0.06847,34174.0,34148.0,0.13632608]
[1610369967496,0.06847,34174.0,34148.0,0.24556608]
[1610369967896,0.06847,34174.0,34148.0,0.10924]
[1610369968496,0.06847,34174.0,34137.0,0.11234]
[1610369968698,0.13632608,34138.0,34137.0,0.11234]
[1610369969698,0.21183608,34138.0,34076.0,0.08208]
[1610369970505,0.21183608,34138.0,34077.0,0.00033089]
[1610369970705,0.13632608,34110.0,34048.0,2.26535689]
[1610369970898,0.13632608,34110.0,34077.0,0.0782]
[1610369972701,0.13632608,34110.0,34109.0,0.13632608]
[1610369972901,0.07551,34138.0,34109.0,0.24665608]
[1610369974404,0.70074097,34144.0,34109.0,0.24665608]
[1610369974606,0.13632608,34144.0,34139.0,0.13632608]
[1610369974803,0.13632608,34144.0,34109.0,0.11033]
[1610369974804,0.13632608,34144.0,34122.0,0.11186]
[1610369975004,0.09655,34146.0,34122.0,0.11186]
[1610369975205,0.70389437,34156.0,34122.0,0.11186]
[1610369975404,0.79889741,34157.0,34122.0,0.11186]
[1610369975606,0.70385741,34157.0,34122.0,0.11186]
[1610369975807,0.70484881,34162.0,34122.0,0.11186]
[1610369976607,0.70484881,34162.0,34161.0,0.13632608]
[1610369977007,0.70653623,34168.0,34161.0,0.13632608]
[1610369977609,0.06847,34174.0,34153.0,0.09321]
[1610369977813,0.70933009,34178.0,34153.0,0.09142639]
[1610369978013,0.70982183,34181.0,34153.0,0.09142639]
[1610369978412,0.71099373,34183.0,34153.0,0.09142639]
[1610369978813,0.71178333,34186.0,34153.0,0.09142639]
[1610369979012,0.71221104,34188.0,34153.0,0.09142639]
[1610369979615,0.69221104,34188.0,34153.0,0.09142639]
[1610369979817,0.79765928,34193.0,34153.0,0.09142639]
[1610369981318,0.79789125,34189.0,34153.0,0.09142639]
[1610369981518,0.90466125,34189.0,34153.0,0.09142639]
[1610369981720,0.79808353,34186.0,34153.0,0.09142639]
[1610369981919,0.80017333,34188.0,34146.0,0.09436]
[1610369982119,0.80017333,34188.0,34122.0,1.61186]
[1610369982322,0.00035683,34187.0,34122.0,1.61186]
[1610369982520,0.10677,34189.0,34123.0,0.0360141]
[1610369982719,0.13632608,34172.0,34123.0,0.0360141]
[1610369983120,0.13632608,34172.0,34122.0,0.11186]
[1610369983320,0.13632608,34172.0,34124.0,0.00033066]
[1610369983721,0.13632608,34172.0,34124.0,0.07024]
[1610369983921,0.13632608,34172.0,34125.0,0.0003307]
[1610369984722,0.07765,34182.0,34125.0,0.0003307]
[1610369986623,0.13632608,34185.0,34180.0,0.13632608]
[1610369987025,0.13632608,34185.0,34169.0,0.0782]
[1610369987827,0.90796746,34198.0,34169.0,0.0782]
[1610369987828,0.10215,34198.0,34169.0,0.0782]
[1610369988226,0.00035678,34197.0,34169.0,0.0782]
[1610369988427,0.10215,34198.0,34169.0,0.0782]
[1610369988627,0.10215,34198.0,34196.0,0.13632608]
[1610369988826,0.8082371,34207.0,34196.0,0.13632608]
[1610369989026,0.564,34296.0,34196.0,0.13632608]
[1610369989027,0.80860442,34208.0,34196.0,0.04718614]
[1610369989227,0.00035671,34206.0,34196.0,0.04718614]
[1610369989425,0.80928796,34211.0,34196.0,0.04718614]
[1610369989626,0.88315233,34215.0,34196.0,0.04540376]
[1610369989826,0.00035664,34210.0,34196.0,0.04540376]
[1610369990028,0.81097931,34216.0,34196.0,0.04540376]
[1610369990226,0.81430732,34221.0,34196.0,0.14492376]
[1610369990627,0.09214,34222.0,34212.0,0.13632608]
[1610369992028,0.82139405,34230.0,34212.0,0.13632608]
[1610369992230,0.82289467,34231.0,34205.0,0.09598]
[1610369992430,0.82244648,34234.0,34205.0,0.09598]
[1610369992632,0.82244648,34234.0,34220.0,0.13632608]
[1610369992829,0.00035652,34233.0,34220.0,0.13632608]
[1610369993030,0.09446652,34233.0,34220.0,0.13632608]
[1610369993430,0.00035652,34232.0,34220.0,0.13632608]
[1610369993630,0.00035652,34232.0,34205.0,0.09598]
[1610369994031,0.93509645,34240.0,34205.0,0.09598]
[1610369994431,0.10744,34240.0,34205.0,0.09598]
[1610369994630,0.13632608,34210.0,34205.0,0.09598]
[1610369995030,0.10744,34240.0,34205.0,0.09598]
[1610369995831,0.10744,34240.0,34203.0,0.13632608]
[1610369996630,0.10744,34240.0,34220.0,0.13632608]
[1610369997033,0.10744,34240.0,34219.0,0.10582]
[1610369998032,0.08613,34248.0,34219.0,0.10582]
[1610369998634,0.08613,34248.0,34244.0,0.13632608]
[1610369999032,0.83351196,34256.0,34244.0,0.13632608]
[1610369999434,0.83526468,34259.0,34240.0,0.09804]
[1610369999634,0.8357665,34261.0,34240.0,0.10781]
[1610369999834,0.83601157,34263.0,34240.0,0.10602963]
[1610370000034,0.83653114,34265.0,34240.0,0.10602963]
[1610370000436,0.8385646,34270.0,34240.0,0.10602963]
[1610370000635,0.13632608,34242.0,34240.0,0.10602963]
[1610370002652,0.13632608,34242.0,34219.0,0.10582]
[1610370002851,0.13632608,34242.0,34203.0,0.13632608]
[1610370003853,0.13632608,34242.0,34196.0,0.09952]
[1610370004249,0.13632608,34242.0,34148.0,0.0871]
[1610370004452,0.13632608,34242.0,34158.0,0.0881]
[1610370004652,0.13632608,34182.0,34170.0,0.13632608]
[1610370005241,0.11207,34212.0,34170.0,0.13632608]
[1610370005441,0.11207,34212.0,34170.0,0.24550608]
[1610370005647,0.11207,34212.0,34171.0,0.0867]
[1610370005844,0.8212437,34244.0,34171.0,0.0867]
[1610370006042,0.10386,34247.0,34171.0,1.5867]
[1610370006242,0.10386,34247.0,34172.0,0.00032677]
[1610370006443,1.0,34252.0,34172.0,0.00032677]
[1610370006642,1.0,34252.0,34211.0,0.13632608]
[1610370006844,0.00035637,34251.0,34211.0,0.22297608]
[1610370007043,0.07331,34257.0,34211.0,0.22297608]
[1610370007245,0.82138062,34263.0,34211.0,0.22297608]
[1610370007645,0.08415,34264.0,34211.0,0.22297608]
[1610370007646,0.81815225,34261.0,34211.0,0.22297608]
[1610370007845,0.00035633,34260.0,34211.0,0.22297608]
[1610370008445,0.00035635,34261.0,34211.0,0.22297608]
[1610370008645,0.13632608,34212.0,34211.0,0.22297608]
[1610370009445,0.0977,34247.0,34211.0,0.22297608]
[1610370010755,0.13632608,34217.0,34211.0,0.08665]
[1610370011847,0.13632608,34217.0,34172.0,0.0865]
[1610370012047,0.13632608,34217.0,34170.0,0.10918]
[1610370012249,0.13632608,34217.0,34141.0,1.57081557]
[1610370012447,0.13632608,34217.0,34173.0,0.00032673]
[1610370012647,0.13632608,34217.0,34173.0,0.10106]
[1610370012848,0.13632608,34176.0,34174.0,0.00032678]
[1610370013447,0.13632608,34176.0,34173.0,0.10106]
[1610370014048,0.13632608,34176.0,34174.0,0.0003269]
[1610370014247,0.13632608,34176.0,34173.0,0.10106]
[1610370015248,0.13632608,34176.0,34147.0,4.0774]
[1610370015850,0.13632608,34176.0,34148.0,0.00032714]
[1610370016049,0.13632608,34176.0,34148.0,0.09978714]
[1610370016649,0.13632608,34176.0,34149.0,0.00032719]
[1610370016852,0.09925,34182.0,34149.0,0.00032719]
[1610370017853,0.00035693,34181.0,34136.0,0.08557]
[1610370018253,0.09925,34182.0,34136.0,0.08557]
[1610370018855,0.13632608,34137.0,34136.0,0.08557]
[1610370019255,0.13632608,34137.0,34124.0,0.08739]
[1610370019655,0.13632608,34137.0,34122.0,4.6163]
[1610370020870,0.13632608,34123.0,34122.0,4.6163]
[1610370023077,0.13632608,34123.0,34122.0,4.61451443]
[1610370023270,0.13632608,34123.0,34083.0,3.55]
[1610370024861,0.13632608,34084.0,34083.0,3.55]
[1610370025962,0.1099,34125.0,34083.0,3.55]
[1610370026164,0.1099,34125.0,34083.0,3.64776]
[1610370026362,4.0818,34133.0,34083.0,3.64776]
[1610370026762,0.13632608,34107.0,34093.0,0.13632608]
[1610370027163,4.0818,34133.0,34093.0,0.13632608]
[1610370027363,4.0818,34133.0,34093.0,0.21849608]
[1610370028165,4.9115,34112.0,34094.0,1.5]
[1610370028365,0.2759,34176.0,34094.0,1.5]
[1610370028766,0.2759,34176.0,34093.0,0.21849608]
[1610370028767,0.2759,34176.0,34122.0,0.13632608]
[1610370028964,0.2759,34176.0,34122.0,0.1076]
[1610370030166,0.2759,34176.0,34100.0,0.10247]
[1610370030366,1.5,34175.0,34100.0,0.10247]
[1610370030765,0.13632608,34101.0,34100.0,0.10247]
[1610370031167,0.13632608,34101.0,34083.0,0.09776]
[1610370031369,0.13632608,34101.0,34025.0,2.24678921]
[1610370031567,0.13632608,34101.0,34018.0,2.24628008]
[1610370031766,0.13632608,34101.0,34026.0,0.00032778]
[1610370032167,0.13632608,34101.0,34026.0,0.08032]
[1610370032868,0.09291,34103.0,34057.0,0.13632608]
[1610370033070,0.09291,34103.0,34057.0,0.22171608]
[1610370033871,0.0886,34102.0,34057.0,0.22171608]
[1610370034472,0.087,34101.0,34058.0,0.089]
[1610370034874,0.13632608,34059.0,34058.0,0.089]
[1610370035274,0.09291,34103.0,34058.0,0.089]
[1610370035472,0.09291,34103.0,34057.0,0.08539]
[1610370035473,1.25764196,34148.0,34057.0,0.08539]
[1610370035875,1.25965332,34149.0,34057.0,0.08539]
[1610370036075,0.0882,34141.0,34057.0,0.08539]
[1610370036876,0.13632608,34062.0,34061.0,0.13632608]
[1610370037075,0.10618,34107.0,34061.0,0.13632608]
[1610370038476,0.10618,34107.0,34062.0,1.5]
[1610370038676,0.2732,34147.0,34062.0,1.5877]
[1610370038877,0.13632608,34109.0,34096.0,0.13632608]
[1610370039077,0.08927,34133.0,34096.0,0.13632608]
[1610370039276,0.08927,34133.0,34096.0,0.21073608]
[1610370039475,0.08927,34133.0,34096.0,0.07441]
[1610370040876,0.13632608,34097.0,34096.0,0.07441]
[1610370041477,0.0975,34125.0,34096.0,0.07441]
[1610370042879,0.13632608,34097.0,34096.0,0.07441]
[1610370043080,0.13632608,34097.0,34087.0,0.07628]
[1610370044280,0.13632608,34097.0,34074.0,3.3512]
[1610370044880,0.13632608,34075.0,34074.0,3.3512]
[1610370045081,0.21321608,34075.0,34074.0,3.3512]
[1610370045480,0.21321608,34075.0,34074.0,3.4387]
[1610370045681,0.21321608,34075.0,34074.0,3.3512]
[1610370047182,0.21321608,34075.0,34057.0,0.08539]
[1610370047383,0.21321608,34075.0,33961.0,3.41829796]
[1610370047584,0.21321608,34075.0,33985.0,0.1556]
[1610370047782,0.30081608,34075.0,33998.0,0.0889]
[1610370047983,0.30081608,34075.0,34027.0,0.00032876]
[1610370048184,0.30081608,34075.0,34007.0,0.0892]
[1610370048384,0.2755,34074.0,34028.0,0.00032874]
[1610370048784,0.2755,34074.0,34028.0,0.0361011]
[1610370048984,0.07689,34075.0,34049.0,0.13632608]
[1610370049185,0.09568,34083.0,34049.0,0.21467608]
[1610370049386,0.09568,34083.0,34050.0,0.00032872]
[1610370050984,0.13632608,34051.0,34050.0,0.00032872]
[1610370051384,0.07514,34098.0,34050.0,0.00032872]
[1610370051584,0.088,34126.0,34050.0,0.00032872]
[1610370051785,0.2876,34125.0,34050.0,0.00032872]
[1610370052185,0.00035764,34104.0,34050.0,0.00032872]
[1610370052385,0.09714,34104.0,34050.0,0.00032872]
[1610370052586,0.00035764,34103.0,34050.0,0.00032872]
[1610370052785,0.00035764,34103.0,34043.0,2.19167872]
[1610370052987,0.00035764,34103.0,33983.0,2.14475485]
[1610370053192,0.00035764,34103.0,33943.0,0.1556]
[1610370053193,1.0,34099.0,33958.0,2.38321819]
[1610370053393,0.13632608,33984.0,33958.0,2.38321819]
[1610370053587,0.13632608,33984.0,33943.0,3.06413767]
[1610370053588,0.13632608,33984.0,33959.0,0.0711849]
[1610370053787,0.13632608,33984.0,33959.0,0.19357878]
[1610370053988,0.13632608,33984.0,33959.0,0.08625]
[1610370054187,0.13632608,33984.0,33960.0,0.0003286]
[1610370055188,0.07587,34020.0,33960.0,0.0003286]
[1610370057591,0.07587,34020.0,33976.0,0.13632608]
[1610370057991,0.07587,34020.0,33976.0,0.23616608]
[1610370058193,0.07587,34020.0,33976.0,0.09984]
[1610370058794,0.10935,34027.0,33976.0,0.09984]
[1610370058992,4.0469,34039.0,33976.0,0.09984]
[1610370059593,0.13632608,33977.0,33976.0,0.09984]
[1610370060595,0.13632608,33977.0,33959.0,0.08625]
[1610370060805,0.13632608,33977.0,33951.0,4.8932]
[1610370061595,0.13632608,33952.0,33892.0,0.089]
[1610370061797,0.13632608,33952.0,33879.0,0.1556]
[1610370062196,0.13632608,33952.0,33880.0,0.00032899]
[1610370062397,0.13632608,33952.0,33880.0,0.07484899]
[1610370062798,0.13632608,33952.0,33881.0,0.0877]
[1610370062997,0.13632608,33952.0,33881.0,0.08802896]
[1610370063397,0.13632608,33952.0,33882.0,0.00032896]
[1610370063599,0.13632608,33933.0,33922.0,0.13632608]
[1610370063799,0.13632608,33933.0,33882.0,0.00032896]
[1610370064001,0.13632608,33933.0,33881.0,0.00032896]
[1610370065600,0.08681,33957.0,33881.0,0.13665504]
[1610370065801,0.08681,33957.0,33881.0,0.13632608]
[1610370067605,0.08681,33957.0,33917.0,0.13632608]
[1610370067802,0.08681,33957.0,33917.0,0.22512608]
[1610370068003,0.08788,33971.0,33917.0,0.22512608]
[1610370068402,0.75734404,34035.0,33917.0,0.22512608]
[1610370068903,0.75809507,34036.0,33917.0,0.22512608]
[1610370069304,0.76273841,34049.0,33917.0,0.22512608]
[1610370069503,0.76273841,34049.0,33918.0,0.00032893]
[1610370069703,0.76792869,34065.0,33990.0,0.13632608]
[1610370069903,0.76792869,34065.0,33990.0,0.20664608]
[1610370070106,0.76905124,34070.0,33990.0,0.20485348]
[1610370070305,0.76895839,34073.0,33990.0,0.20485348]
[1610370070705,0.77062659,34077.0,33990.0,0.20485348]
[1610370070905,0.77214708,34083.0,33990.0,0.20485348]
[1610370071307,0.77625778,34091.0,33990.0,0.07032]
[1610370072105,0.97028757,34096.0,33990.0,0.07032]
[1610370072106,0.77475443,34084.0,33990.0,0.07032]
[1610370072306,0.85940443,34084.0,33990.0,0.07032]
[1610370072506,0.77472939,34078.0,33990.0,0.07032]
[1610370072907,0.7739505,34075.0,33990.0,0.07032]
[1610370073107,0.8473005,34075.0,33990.0,0.07032]
[1610370073307,0.07335,34075.0,33990.0,0.07032]
[1610370073608,0.13632608,33993.0,33991.0,0.13632608]
[1610370074408,0.08038,34030.0,33991.0,0.13632608]
[1610370075108,0.08038,34030.0,33990.0,0.07032]
[1610370075312,0.08038,34030.0,33919.0,0.1556]
[1610370075712,0.13632608,33988.0,33919.0,0.1556]
[1610370075911,0.13632608,33988.0,33931.0,3.7312]
[1610370076111,0.13632608,33988.0,33931.0,3.82003]
[1610370076310,0.13632608,33988.0,33932.0,0.00032868]
[1610370077314,0.13632608,33988.0,33938.0,4.1027]
[1610370077513,0.13632608,33988.0,33938.0,4.20299]
[1610370077715,0.09145,34022.0,33964.0,0.13632608]
[1610370077916,0.09145,34022.0,33964.0,0.07026]
[1610370079319,0.09145,34022.0,33955.0,0.08686]
[1610370079717,0.13632608,33956.0,33955.0,0.08686]
[1610370080317,0.13632608,33956.0,33955.0,0.00032898]
[1610370080518,0.13632608,33956.0,33938.0,0.10029]
[1610370080717,0.23959608,33956.0,33938.0,0.10029]
[1610370080917,0.23959608,33956.0,33939.0,0.00032913]
[1610370081116,0.23959608,33956.0,33931.0,0.08883]
[1610370081317,0.23959608,33956.0,33917.0,0.0888]
[1610370081517,0.23959608,33956.0,33852.0,0.1556]
[1610370081718,0.10327,33956.0,33911.0,0.13632608]
[1610370081918,0.11137,33969.0,33911.0,0.10667]
[1610370082320,0.77559955,34015.0,33911.0,0.10667]
[1610370082518,0.09145,34022.0,33911.0,0.10667]
[1610370082519,0.77790656,34019.0,33912.0,0.00032921]
[1610370082918,0.00035889,34018.0,33912.0,0.00032921]
[1610370083519,0.00035891,34021.0,33912.0,0.00032921]
[1610370083720,0.13632608,33943.0,33933.0,0.13632608]
[1610370083920,0.13632608,33943.0,33912.0,0.00032921]
[1610370084519,2.608e-05,33943.0,33912.0,0.00032921]
[1610370085120,2.608e-05,33943.0,33912.0,0.00032917]
[1610370085320,0.11245,33978.0,33912.0,0.00032917]
[1610370085723,0.10742608,33962.0,33960.0,0.13632608]
[1610370085920,0.08981,33998.0,33960.0,0.13632608]
[1610370086140,0.08981,33998.0,33960.0,0.22827608]
[1610370086521,0.09145,34022.0,33960.0,0.22827608]
[1610370086720,0.69429915,34037.0,33960.0,0.22827608]
[1610370086920,0.16141578,34044.0,33960.0,0.09195]
[1610370087122,0.00035876,34027.0,33960.0,0.09195]
[1610370087639,0.0003588,34029.0,33960.0,0.09195]
[1610370087831,0.13632608,33961.0,33960.0,0.09195]
[1610370088029,0.23178608,33961.0,33911.0,0.10667]
[1610370088231,0.23178608,33961.0,33868.0,0.0713518]
[1610370088429,0.23178608,33961.0,33912.0,0.00032926]
[1610370088634,0.23178608,33961.0,33912.0,0.10502926]
[1610370088834,0.23178608,33961.0,33912.0,0.1047]
[1610370089031,0.23178608,33961.0,33913.0,0.00032929]
[1610370089826,0.13632608,33914.0,33913.0,0.00032929]
[1610370090651,0.07757,33952.0,33913.0,0.00032929]
[1610370091225,0.10336,33980.0,33913.0,0.00032929]
[1610370091830,0.13632608,33946.0,33913.0,0.00032929]
[1610370093832,0.13632608,33914.0,33913.0,0.00032929]
[1610370095833,0.13632608,33914.0,33912.0,0.1047]
[1610370096034,0.13632608,33914.0,33879.0,0.13632608]
[1610370096432,0.08092,33953.0,33880.0,0.00032949]
[1610370096633,0.08092,33953.0,33880.0,0.11315949]
[1610370096832,0.08092,33953.0,33880.0,0.14907844]
[1610370097033,0.10501,33961.0,33880.0,0.14907844]
[1610370097234,0.10501,33961.0,33881.0,0.03625079]
[1610370098033,0.07255,33973.0,33881.0,0.03625079]
[1610370098232,0.10336,33980.0,33880.0,0.11283]
[1610370098433,0.69226276,33995.0,33882.0,0.00032944]
[1610370098634,0.69223231,33994.0,33882.0,0.00032944]
[1610370098832,0.00035919,33979.0,33881.0,0.00032944]
[1610370099033,0.08273,33979.0,33883.0,0.00032946]
[1610370099232,1.0,33968.0,33882.0,0.00032948]
[1610370099433,4.5862,33958.0,33882.0,0.00032948]
[1610370099633,4.67757,33958.0,33884.0,0.00032948]
[1610370099833,0.13632608,33888.0,33886.0,0.13632608]
[1610370100034,0.06892,33948.0,33886.0,0.13632608]
[1610370100233,0.06892,33948.0,33887.0,0.00032952]
[1610370101435,0.06892,33948.0,33887.0,0.11185]
[1610370101837,0.13632608,33888.0,33887.0,0.11185]
[1610370102838,0.13632608,33888.0,33862.0,4.5283]
[1610370103237,0.13632608,33888.0,33874.0,0.00032987]
[1610370103739,0.13632608,33875.0,33864.0,0.11346]
[1610370104539,0.13632608,33875.0,33862.0,4.5283]
[1610370104737,0.13632608,33875.0,33873.0,0.01508952]
[1610370105541,4.5716,33863.0,33804.0,3.5793]
[1610370105742,0.13632608,33805.0,33786.0,0.13632608]
[1610370105942,0.13632608,33805.0,33767.0,2.09638226]
[1610370106141,0.13632608,33805.0,33784.0,0.00032957]
[1610370106360,0.13632608,33805.0,33784.0,0.08656]
[1610370106542,0.07951,33830.0,33784.0,0.08656]
[1610370106742,3.9332,33828.0,33785.0,0.00032964]
[1610370106941,0.07951,33830.0,33784.0,0.06688964]
[1610370107362,3.7585,33802.0,33784.0,0.06688964]
[1610370107745,0.13632608,33785.0,33784.0,0.06688964]
[1610370108747,0.77352608,33785.0,33784.0,0.06688964]
[1610370109146,0.6372,33785.0,33784.0,0.06688964]
[1610370109747,0.6372,33785.0,33784.0,0.20321572]
[1610370109948,0.07951,33830.0,33784.0,0.20321572]
[1610370110348,0.07201,33847.0,33784.0,0.20321572]
[1610370110748,0.59944475,33879.0,33784.0,0.20321572]
[1610370111149,0.68116864,33882.0,33784.0,0.20321572]
[1610370111348,0.60095587,33885.0,33784.0,0.06688964]
[1610370111551,0.60191395,33894.0,33783.0,0.0896]
[1610370111748,0.13632608,33882.0,33877.0,0.13632608]
[1610370111948,0.13632608,33882.0,33783.0,0.0896]
[1610370112148,0.60395664,33906.0,33784.0,0.00031852]
[1610370112548,0.60638796,33914.0,33785.0,0.1556]
[1610370112748,0.60638796,33914.0,33786.0,1.5]
[1610370112947,0.60638796,33914.0,33787.0,0.0897]
[1610370113149,0.61068772,33935.0,33787.0,0.0897]
[1610370113349,0.6108461,33933.0,33788.0,0.00031832]
[1610370113549,0.6869461,33933.0,33788.0,0.00031832]
[1610370113750,0.0761,33933.0,33788.0,0.00031832]
[1610370114152,0.60944065,33928.0,33786.0,0.00031832]
[1610370114349,0.13632608,33843.0,33828.0,0.13632608]
[1610370114951,0.13632608,33843.0,33785.0,0.1058]
[1610370115751,0.21899608,33843.0,33785.0,0.1058]
[1610370116352,0.13632608,33786.0,33785.0,0.1058]
[1610370117851,0.13632608,33786.0,33709.0,2.22350215]
[1610370118052,0.13632608,33786.0,33698.0,2.21965832]
[1610370118252,0.13632608,33786.0,33710.0,0.000319]
[1610370118455,0.13632608,33786.0,33768.0,0.13632608]
[1610370118654,0.13632608,33786.0,33768.0,0.21935608]
[1610370118855,0.08267,33843.0,33768.0,0.21935608]
[1610370119254,0.64873852,33873.0,33768.0,0.21935608]
[1610370119255,0.59509322,33874.0,33768.0,0.21935608]
[1610370119655,0.59626375,33879.0,33768.0,0.21935608]
[1610370120059,0.59801801,33887.0,33768.0,0.21935608]
[1610370120459,0.59734957,33884.0,33768.0,0.08303]
[1610370120659,0.69557957,33884.0,33768.0,0.08303]
[1610370121059,0.09823,33884.0,33768.0,0.08303]
[1610370122062,0.59984536,33897.0,33768.0,0.08303]
[1610370122262,0.08932,33900.0,33769.0,0.00031879]
[1610370122467,0.13632608,33880.0,33769.0,0.00031879]
[1610370122663,0.13632608,33880.0,33768.0,0.08303]
[1610370123064,0.13632608,33880.0,33770.0,0.00031856]
[1610370123262,0.13632608,33880.0,33770.0,1.5]
[1610370123463,0.13632608,33880.0,33771.0,0.00031853]
[1610370124063,0.13632608,33880.0,33770.0,0.00031853]
[1610370124263,0.13632608,33880.0,33772.0,0.00031853]
[1610370124464,0.07022,33902.0,33836.0,0.13632608]
[1610370124665,0.07022,33902.0,33836.0,0.09602]
[1610370126265,0.5956435,33924.0,33836.0,0.09602]
[1610370126468,0.13632608,33903.0,33894.0,0.13632608]
[1610370126666,0.59777287,33937.0,33894.0,0.13632608]
[1610370126866,0.59777287,33937.0,33894.0,0.21775608]
[1610370127067,0.59889923,33944.0,33894.0,0.08143]
[1610370127276,0.09535,33946.0,33894.0,0.08146]
[1610370127466,0.09535,33946.0,33894.0,0.07966181]
[1610370127666,3.5881,33955.0,33894.0,0.07966181]
[1610370128370,0.13632608,33919.0,33912.0,0.13632608]
[1610370128966,0.13632608,33919.0,33894.0,0.07966181]
[1610370130373,0.07101,33929.0,33907.0,0.13632608]
[1610370130576,0.07101,33929.0,33907.0,0.22639608]
[1610370131576,3.5881,33955.0,33907.0,0.22639608]
[1610370132072,3.5881,33955.0,33919.0,0.02]
[1610370132273,3.5881,33955.0,33919.0,0.10451]
[1610370132472,3.5881,33955.0,33919.0,0.12311]
[1610370134573,0.13632608,33937.0,33932.0,0.13632608]
[1610370134973,0.13632608,33937.0,33919.0,0.12311]
[1610370136575,0.13632608,33924.0,33920.0,0.13632608]
[1610370136775,0.13632608,33924.0,33919.0,0.12311]
[1610370137178,0.13632608,33924.0,33919.0,0.0386]
[1610370137378,0.08451,33917.0,33894.0,0.07966181]
[1610370137577,0.19224,33917.0,33869.0,4.6996]
[1610370138578,0.13632608,33870.0,33869.0,4.6996]
[1610370139981,0.13632608,33870.0,33772.0,2.57914617]
[1610370139982,0.13632608,33870.0,33836.0,4.62042]
[1610370140579,0.13632608,33837.0,33836.0,4.62042]
[1610370143180,0.11197,33866.0,33836.0,4.62042]
[1610370143579,0.46932032,33895.0,33836.0,4.62042]
[1610370143780,0.60137273,33898.0,33836.0,4.62042]
[1610370144181,0.6037436,33907.0,33836.0,4.62042]
[1610370144580,0.60604411,33914.0,33887.0,0.13632608]
[1610370144780,0.60604411,33914.0,33887.0,0.24764608]
[1610370144981,4.8871,33920.0,33887.0,0.15772244]
[1610370145182,0.61069139,33928.0,33887.0,0.15772244]
[1610370145581,0.61448462,33941.0,33887.0,0.15772244]
[1610370145983,0.64717653,33957.0,33887.0,0.15772244]
[1610370145984,0.61500848,33945.0,33887.0,0.15772244]
[1610370146381,0.61637614,33946.0,33887.0,0.15772244]
[1610370146581,0.13632608,33904.0,33887.0,0.11132]
[1610370148382,0.21827608,33904.0,33887.0,0.11132]
[1610370148597,0.13632608,33888.0,33887.0,0.11132]